bitfinex/quotes_SOLUSD_20240622
["timestamp","ask_amount","ask_price","bid_price","bid_amount"]
[1719099597640,6.56,133.46,133.45,0.3732376]
[1719099598724,7.492,133.48,133.45,0.3732376]
[1719099598924,6.56,133.46,133.45,0.3732376]
[1719099602618,14.0528,133.46,133.45,0.3732376]
[1719099603018,29.2109,133.46,133.45,0.3732376]
[1719099603235,62.08795153,133.46,133.45,0.3732376]
[1719099603437,69.58595153,133.46,133.45,0.3732376]
[1719099603643,69.75595153,133.46,133.45,0.3732376]
[1719099603830,114.75595153,133.46,133.45,0.3732376]
[1719099604230,7.4957,133.41,133.37,16.1199]
[1719099604546,6.56,133.39,133.37,16.1199]
[1719099604846,6.56,133.38,133.37,23.6178]
[1719099605038,7.4947,133.43,133.37,123.6178]
[1719099605228,6.56,133.39,133.37,116.1199]
[1719099605432,6.56,133.39,133.37,123.6174]
[1719099607539,6.56,133.39,133.37,116.1199]
[1719099609321,6.56,133.39,133.38,7.4973]
[1719099609623,6.56,133.41,133.39,100.0]
[1719099610755,7.4949,133.43,133.39,100.0]
[1719099610965,6.56,133.41,133.39,100.0]
[1719099611158,7.4977,133.38,133.35,100.0]
[1719099611362,6.56,133.37,133.35,100.0]
[1719099611730,6.56,133.38,133.35,100.0]
[1719099611937,6.56,133.38,133.35,107.499]
[1719099612125,6.56,133.38,133.35,100.0]
[1719099612563,7.4967,133.4,133.35,107.4989]
[1719099612734,25.1924,133.44,133.37,100.0]
[1719099613053,6.56,133.39,133.37,100.0]
[1719099613353,6.56,133.4,133.37,100.0]
[1719099616342,7.4952,133.42,133.37,107.4978]
[1719099616663,6.56,133.4,133.37,100.0]
[1719099616863,7.4957,133.41,133.37,100.0]
[1719099617037,6.56,133.4,133.37,100.0]
[1719099620246,6.56,133.4,133.37,107.4977]
[1719099620447,6.56,133.4,133.37,100.0]
[1719099621559,6.56,133.4,133.37,107.4978]
[1719099622563,6.56,133.4,133.37,100.0]
[1719099623454,18.7388,133.42,133.35,100.0]
[1719099623654,6.56,133.38,133.35,100.0]
[1719099623884,6.56,133.37,133.35,100.0]
[1719099624161,14.0574,133.38,133.35,100.0]
[1719099624366,6.56,133.38,133.35,100.0]
[1719099624658,52.81447512,133.42,133.35,107.4987]
[1719099624659,7.4963,133.4,133.35,107.4987]
[1719099624967,6.56,133.39,133.35,107.4987]
[1719099625140,6.56,133.38,133.35,107.4987]
[1719099626157,6.56,133.39,133.35,107.4987]
[1719099626457,52.81447512,133.42,133.37,100.0]
[1719099626458,7.83567512,133.42,133.37,100.0]
[1719099626657,7.496,133.41,133.37,100.0]
[1719099626961,6.56,133.4,133.37,100.0]
[1719099627461,6.56,133.39,133.37,100.0]
[1719099627667,6.56,133.39,133.35,107.4988]
[1719099627868,6.56,133.39,133.36,7.4983]
[1719099629053,20.0,133.43,133.37,100.0]
[1719099629368,6.56,133.4,133.37,100.0]
[1719099630870,6.56,133.4,133.37,107.4979]
[1719099631549,6.56,133.4,133.37,100.0]
[1719099632953,6.56,133.4,133.37,107.4979]
[1719099633152,7.4953,133.42,133.37,107.4979]
[1719099633454,6.56,133.4,133.37,100.0]
[1719099633662,7.496,133.41,133.37,100.0]
[1719099633847,6.56,133.4,133.36,7.4981]
[1719099634047,7.4963,133.4,133.35,107.4989]
[1719099634268,27.4949,133.43,133.38,107.4973]
[1719099634472,6.56,133.4,133.38,107.4973]
[1719099634772,6.56,133.4,133.38,100.0]
[1719099634976,6.56,133.4,133.38,107.4973]
[1719099635145,27.495,133.43,133.38,107.4973]
[1719099635347,6.56,133.4,133.38,107.4973]
[1719099635586,6.56,133.41,133.38,107.4973]
[1719099635755,27.495,133.43,133.38,107.4973]
[1719099636064,6.56,133.41,133.38,107.4973]
[1719099637764,6.56,133.41,133.38,100.0]
[1719099640965,27.4948,133.43,133.38,100.0]
[1719099641165,6.56,133.41,133.38,100.0]
[1719099645354,27.4946,133.43,133.38,107.4973]
[1719099645560,6.56,133.41,133.38,100.0]
[1719099645965,6.56,133.42,133.38,100.0]
[1719099646292,14.0552,133.42,133.38,100.0]
[1719099646572,6.56,133.41,133.38,100.0]
[1719099647072,6.56,133.41,133.37,29.2201]
[1719099647274,6.56,133.41,133.38,100.0]
[1719099647574,6.56,133.41,133.38,107.4972]
[1719099647751,6.56,133.42,133.38,107.4972]
[1719099649954,6.56,133.41,133.38,107.4972]
[1719099650554,6.56,133.41,133.38,100.0]
[1719099651175,6.56,133.41,133.38,107.4973]
[1719099653689,6.56,133.42,133.38,107.4973]
[1719099658571,6.56,133.42,133.38,100.0]
[1719099659363,14.0552,133.42,133.38,100.0]
[1719099660081,6.56,133.41,133.38,100.0]
[1719099660282,14.0552,133.42,133.38,100.0]
[1719099661374,14.0552,133.42,133.37,29.2201]
[1719099661375,7.4957,133.41,133.37,21.7225]
[1719099661559,14.0557,133.41,133.37,21.7225]
[1719099661766,6.56,133.39,133.36,100.0]
[1719099662075,7.4972,133.39,133.36,100.0]
[1719099662378,6.56,133.38,133.34,107.4991]
[1719099662582,6.56,133.38,133.34,100.0]
[1719099662754,7.4975,133.38,133.34,100.0]
[1719099662962,6.56,133.37,133.34,100.0]
[1719099663272,6.56,133.39,133.36,100.0]
[1719099663473,14.0569,133.39,133.36,100.0]
[1719099664265,6.56,133.39,133.36,100.0]
[1719099664466,7.4958,133.41,133.36,100.0]
[1719099664679,6.56,133.39,133.36,100.0]
[1719099665071,14.0562,133.4,133.36,100.0]
[1719099665682,7.4975,133.38,133.34,100.0]
[1719099665883,12.67199913,133.41,133.36,100.0]
[1719099666069,6.56,133.39,133.36,100.0]
[1719099666675,14.0568,133.39,133.36,100.0]
[1719099666967,6.56,133.39,133.36,100.0]
[1719099667179,20.16961937,133.41,133.36,100.0]
[1719099667486,6.56,133.4,133.36,107.4982]
[1719099667684,6.56,133.4,133.36,100.0]
[1719099667891,14.0569,133.39,133.36,100.0]
[1719099668268,20.16727139,133.41,133.36,100.0]
[1719099668484,34.6548,133.44,133.36,100.0]
[1719099668485,6.56,133.39,133.36,100.0]
[1719099673170,7.4963,133.4,133.36,100.0]
[1719099673492,6.56,133.39,133.36,100.0]
[1719099674698,14.0557,133.41,133.38,100.0]
[1719099674880,6.56,133.4,133.36,107.4981]
[1719099675079,6.56,133.4,133.36,100.0]
[1719099675792,6.56,133.39,133.36,100.0]
[1719099677193,14.0563,133.4,133.36,100.0]
[1719099678377,6.56,133.39,133.36,100.0]
[1719099679080,7.4958,133.41,133.36,107.4984]
[1719099679286,6.56,133.4,133.36,107.4984]
[1719099680372,7.4958,133.41,133.36,107.4984]
[1719099680575,6.56,133.4,133.36,107.4984]
[1719099680771,6.56,133.4,133.36,100.0]
[1719099681196,6.56,133.39,133.36,100.0]
[1719099681503,6.56,133.38,133.36,100.0]
[1719099683399,6.56,133.37,133.34,100.0]
[1719099683897,14.0575,133.38,133.34,100.0]
[1719099684297,6.56,133.38,133.34,100.0]
[1719099684985,7.497,133.39,133.34,100.0]
[1719099685178,6.56,133.38,133.34,100.0]
[1719099685780,22.7947,133.38,133.32,0.8732376]
[1719099685980,6.56,133.34,133.32,0.8732376]
[1719099688017,7.4987,133.36,133.32,0.8732376]
[1719099688182,27.63546909,133.41,133.32,23.8405376]
[1719099688508,6.56,133.38,133.35,107.4986]
[1719099689488,6.56,133.37,133.33,100.0]
[1719099690018,6.56,133.36,133.33,107.4998]
[1719099690389,6.56,133.36,133.33,107.5001]
[1719099691097,6.56,133.37,133.33,107.5001]
[1719099691822,6.56,133.37,133.34,7.4995]
[1719099693127,20.5017525,133.41,133.35,107.87526775]
[1719099693293,6.56,133.38,133.35,100.0]
[1719099694011,6.56,133.38,133.35,107.4989]
[1719099694824,6.56,133.39,133.35,107.4989]
[1719099695791,8.896169,133.43,133.37,100.0]
[1719099695987,6.56,133.4,133.37,100.0]
[1719099696410,27.4955,133.42,133.37,100.0]
[1719099696599,6.56,133.4,133.37,100.0]
[1719099697623,6.56,133.4,133.38,1.49709548]
[1719099697802,6.56,133.4,133.37,100.0]
[1719099698402,7.4957,133.41,133.37,100.0]
[1719099698599,6.56,133.4,133.37,100.0]
[1719099698797,6.56,133.4,133.37,107.4977]
[1719099699108,6.56,133.4,133.37,100.0]
[1719099700011,6.56,133.4,133.38,1.39929548]
[1719099700329,6.56,133.4,133.37,100.0]
[1719099701504,6.56,133.4,133.37,107.4978]
[1719099705105,7.4953,133.42,133.37,107.4978]
[1719099705309,6.56,133.41,133.39,100.0]
[1719099706900,7.4952,133.42,133.39,100.0]
[1719099707101,6.56,133.41,133.39,100.0]
[1719099709016,7.4948,133.43,133.39,100.0]
[1719099709209,6.56,133.42,133.39,100.0]
[1719099711210,7.4948,133.43,133.39,100.0]
[1719099711515,21.5684,133.44,133.4,100.0]
[1719099712421,14.074,133.44,133.42,100.0]
[1719099713323,14.074,133.44,133.4,107.496]
[1719099714410,14.074,133.44,133.42,100.0]
[1719099715223,7.514,133.44,133.42,100.0]
[1719099715421,14.074,133.44,133.42,100.0]
[1719099718210,7.514,133.45,133.42,100.0]
[1719099718417,6.56,133.44,133.42,100.0]
[1719099720527,6.0842,133.48,133.42,100.0]
[1719099720831,6.56,133.45,133.42,100.0]
[1719099721006,6.56,133.45,133.42,107.495]
[1719099722237,6.56,133.46,133.42,107.495]
[1719099722445,15.6985,133.5,133.45,100.0]
[1719099722733,14.052,133.48,133.45,100.0]
[1719099723519,6.56,133.48,133.45,100.0]
[1719099723921,6.56,133.48,133.45,107.4933]
[1719099724324,6.56,133.48,133.45,100.0]
[1719099724532,7.4913,133.49,133.45,100.0]
[1719099724710,6.56,133.48,133.45,100.0]
[1719099725138,14.0518,133.48,133.45,100.0]
[1719099725457,6.56,133.48,133.45,100.0]
[1719099726838,7.4906,133.5,133.45,107.4932]
[1719099727037,6.56,133.48,133.45,107.4932]
[1719099727248,6.56,133.48,133.45,100.0]
[1719099728565,6.56,133.48,133.45,107.4934]
[1719099728890,6.56,133.49,133.47,100.0]
[1719099732142,6.56,133.48,133.45,100.0]
[1719099733869,6.56,133.48,133.45,107.4933]
[1719099734049,6.56,133.49,133.45,107.4933]
[1719099737254,7.4908,133.5,133.47,100.0]
[1719099737569,15.34266432,133.52,133.47,100.0]
[1719099737756,6.56,133.49,133.47,100.0]
[1719099738575,7.4902,133.51,133.47,100.0]
[1719099738768,6.56,133.49,133.47,100.0]
[1719099740680,6.56,133.5,133.47,100.0]
[1719099741861,14.0506,133.5,133.47,100.0]
[1719099742065,6.56,133.49,133.47,100.0]
[1719099742582,6.56,133.49,133.45,107.4932]
[1719099742754,6.56,133.48,133.45,107.4932]
[1719099743471,6.56,133.49,133.45,107.4932]
[1719099743913,6.56,133.49,133.46,7.4928]
[1719099744177,6.56,133.5,133.47,107.4922]
[1719099745071,6.56,133.5,133.47,100.0]
[1719099745663,6.56,133.5,133.47,107.4922]
[1719099746178,15.0037,133.52,133.47,107.4922]
[1719099746354,26.56,133.51,133.47,107.4922]
[1719099747164,6.56,133.5,133.47,107.4922]
[1719099747765,6.56,133.5,133.47,100.0]
[1719099749063,6.56,133.5,133.47,107.4922]
[1719099750165,20.0,133.51,133.47,107.4922]
[1719099750370,26.56,133.51,133.47,107.4922]
[1719099751785,20.0,133.51,133.45,100.0]
[1719099752093,6.56,133.48,133.45,107.4932]
[1719099753362,6.56,133.47,133.44,15.3189]
[1719099753562,6.56,133.47,133.44,22.8127]
[1719099754175,6.56,133.47,133.44,7.4938]
[1719099754956,6.56,133.47,133.43,100.0]
[1719099755160,7.4924,133.47,133.42,7.4947]
[1719099755474,6.56,133.44,133.42,7.4947]
[1719099756273,6.56,133.44,133.43,7.4945]
[1719099756766,6.56,133.45,133.43,7.4945]
[1719099757975,6.56,133.45,133.43,107.4945]
[1719099758769,6.56,133.46,133.43,107.4945]
[1719099760693,6.56,133.46,133.43,100.0]
[1719099761179,6.56,133.46,133.43,107.4943]
[1719099761373,6.56,133.47,133.43,107.4943]
[1719099761573,16.6539,133.49,133.45,100.0]
[1719099761775,26.56,133.48,133.45,107.4931]
[1719099762080,6.56,133.49,133.45,107.4931]
[1719099762271,6.56,133.49,133.46,7.4928]
[1719099763593,35.31195897,133.51,133.47,100.0]
[1719099763794,6.56,133.5,133.47,100.0]
[1719099766287,27.4903,133.51,133.47,100.0]
[1719099766591,6.56,133.5,133.47,100.0]
[1719099770871,20.0,133.51,133.47,100.0]
[1719099771198,26.56,133.51,133.47,100.0]
[1719099771376,34.0503,133.51,133.47,100.0]
[1719099771776,6.56,133.5,133.47,100.0]
[1719099774585,20.0,133.51,133.49,100.0]
[1719099774790,26.56,133.51,133.49,100.0]
[1719099776798,7.489,133.53,133.49,100.0]
[1719099776984,6.56,133.53,133.49,100.0]
[1719099777295,6.56,133.53,133.51,100.0]
[1719099779699,7.4885,133.54,133.51,100.0]
[1719099780202,7.4879,133.55,133.51,100.0]
[1719099780390,6.56,133.53,133.51,100.0]
[1719099780801,26.56,133.54,133.51,100.0]
[1719099781187,20.0,133.54,133.51,100.0]
[1719099781421,26.56,133.54,133.51,100.0]
[1719099781702,7.4875,133.56,133.53,100.0]
[1719099781916,6.56,133.55,133.53,100.0]
[1719099782298,20.54014383,133.59,133.53,100.0]
[1719099782609,6.56,133.57,133.55,100.0]
[1719099782820,27.4862,133.58,133.55,100.0]
[1719099782992,6.56,133.57,133.55,100.0]
[1719099786094,6.56,133.56,133.53,116.126]
[1719099786414,27.4863,133.58,133.53,123.6149]
[1719099786594,27.4863,133.58,133.55,100.0]
[1719099786793,6.56,133.57,133.55,100.0]
[1719099787322,34.0463,133.58,133.55,100.0]
[1719099787527,18.7098,133.62,133.57,100.0]
[1719099787808,6.56,133.6,133.57,100.0]
[1719099788007,20.0,133.59,133.57,100.0]
[1719099789005,7.4836,133.63,133.59,100.0]
[1719099789201,20.0,133.62,133.58,100.0]
[1719099789518,6.56,133.61,133.58,100.0]
[1719099789704,6.56,133.61,133.58,107.486]
[1719099789907,6.56,133.62,133.6,100.0]
[1719099790101,6.56,133.63,133.6,100.0]
[1719099790302,20.0,133.62,133.6,100.0]
[1719099791696,7.483,133.64,133.6,100.0]
[1719099791898,6.56,133.63,133.62,100.0]
[1719099792096,6.56,133.64,133.62,100.0]
[1719099793028,7.4812,133.67,133.62,100.0]
[1719099793226,6.56,133.65,133.62,100.0]
[1719099793405,20.0,133.64,133.62,100.0]
[1719099794004,26.56,133.65,133.62,100.0]
[1719099794206,7.4806,133.68,133.64,100.0]
[1719099794399,26.56,133.67,133.64,100.0]
[1719099794601,6.56,133.66,133.62,100.0]
[1719099794821,6.56,133.65,133.62,100.0]
[1719099795193,6.56,133.65,133.64,100.0]
[1719099795399,6.56,133.66,133.64,100.0]
[1719099799923,20.0,133.67,133.64,100.0]
[1719099800097,6.56,133.66,133.64,100.0]
[1719099800518,6.56,133.65,133.62,100.0]
[1719099800741,6.56,133.63,133.6,106.0217]
[1719099801038,7.4819,133.66,133.62,100.0]
[1719099801250,6.56,133.64,133.62,100.0]
[1719099801442,7.4819,133.66,133.62,100.0]
[1719099801621,6.56,133.64,133.62,100.0]
[1719099802426,7.4819,133.66,133.62,100.0]
[1719099802629,6.56,133.64,133.62,100.0]
[1719099802929,6.56,133.63,133.6,106.0217]
[1719099803132,7.4817,133.66,133.62,100.0]
[1719099803335,6.56,133.63,133.62,100.0]
[1719099803852,6.56,133.64,133.62,100.0]
[1719099804022,20.0,133.65,133.62,100.0]
[1719099804225,6.56,133.64,133.62,100.0]
[1719099804445,6.56,133.63,133.59,123.6113]
[1719099804634,6.56,133.62,133.59,123.6113]
[1719099804833,27.4824,133.65,133.59,116.126]
[1719099804834,6.56,133.61,133.59,116.126]
[1719099805030,6.56,133.61,133.59,100.0]
[1719099805546,6.56,133.61,133.58,7.4859]
[1719099806742,6.56,133.61,133.59,107.4854]
[1719099810129,6.56,133.61,133.59,7.4854]
[1719099810541,6.56,133.61,133.57,107.4861]
[1719099810740,6.56,133.61,133.58,7.4858]
[1719099810957,6.56,133.61,133.59,107.4852]
[1719099811538,6.56,133.61,133.59,7.4852]
[1719099811737,6.56,133.61,133.58,7.4858]
[1719099812047,7.483,133.64,133.59,107.4854]
[1719099812246,6.56,133.61,133.59,107.4854]
[1719099814460,6.56,133.61,133.58,7.4859]
[1719099814935,6.56,133.61,133.59,107.4854]
[1719099815728,6.56,133.62,133.59,107.4854]
[1719099815933,27.4822,133.65,133.6,7.4848]
[1719099816148,6.56,133.62,133.6,7.4848]
[1719099816734,20.0,133.65,133.61,107.4842]
[1719099816940,6.56,133.64,133.61,107.4842]
[1719099819267,6.56,133.64,133.61,100.0]
[1719099819557,6.56,133.64,133.63,100.0]
[1719099822664,6.56,133.64,133.61,100.0]
[1719099822966,6.56,133.63,133.61,100.0]
[1719099825366,6.56,133.63,133.61,107.4842]
[1719099826568,6.56,133.63,133.6,7.4848]
[1719099826746,6.56,133.62,133.59,107.4853]
[1719099826947,6.56,133.62,133.61,100.0]
[1719099827167,6.56,133.62,133.59,107.4853]
[1719099827565,6.56,133.62,133.61,100.0]
[1719099827746,6.56,133.63,133.61,100.0]
[1719099835069,6.56,133.62,133.61,107.4844]
[1719099836082,20.0,133.65,133.61,107.4844]
[1719099836264,6.56,133.62,133.61,107.4844]
[1719099841085,6.56,133.62,133.58,107.4858]
[1719099841271,6.56,133.59,133.58,107.4858]
[1719099841986,6.56,133.6,133.59,7.4855]
[1719099842156,6.56,133.6,133.58,100.0]
[1719099842157,50.91812826,133.65,133.6,107.4848]
[1719099842358,6.56,133.61,133.6,107.4848]
[1719099842966,6.56,133.61,133.59,7.4855]
[1719099843165,6.56,133.61,133.6,107.485]
[1719099844896,6.56,133.61,133.58,107.4857]
[1719099845079,6.56,133.6,133.58,107.4857]
[1719099846175,6.56,133.6,133.59,7.4855]
[1719099846374,6.56,133.6,133.56,21.5775]
[1719099846375,6.56,133.61,133.6,107.485]
[1719099846576,6.56,133.61,133.6,100.0]
[1719099847473,6.56,133.61,133.6,107.485]
[1719099848503,6.56,133.63,133.62,100.0]
[1719099848868,26.56,133.63,133.62,100.0]
[1719099856295,34.0433,133.63,133.6,100.0]
[1719099856486,6.56,133.62,133.6,100.0]
[1719099857080,6.56,133.61,133.6,100.0]
[1719099858304,6.56,133.62,133.6,100.0]
[1719099858690,20.0,133.63,133.62,100.0]
[1719099858892,26.56,133.63,133.62,100.0]
[1719099860519,26.56,133.63,133.6,100.0]
[1719099860697,6.56,133.62,133.6,100.0]
[1719099863092,7.485,133.6,133.56,121.5775]
[1719099863290,6.56,133.59,133.56,100.0]
[1719099863618,6.56,133.57,133.56,100.0]
[1719099863909,6.56,133.57,133.54,107.4881]
[1719099864114,6.56,133.56,133.54,100.0]
[1719099864795,6.56,133.55,133.54,100.0]
[1719099866197,6.56,133.56,133.54,100.0]
[1719099867591,6.56,133.55,133.54,100.0]
[1719099870288,6.56,133.55,133.54,107.4883]
[1719099870805,6.56,133.55,133.54,100.0]
[1719099873712,6.56,133.55,133.54,107.4883]
[1719099874895,6.56,133.55,133.54,100.0]
[1719099875921,6.56,133.55,133.54,107.4883]
[1719099880230,6.56,133.55,133.54,100.0]
[1719099884298,14.0478,133.55,133.54,100.0]
[1719099884516,6.56,133.55,133.54,100.0]
[1719099895922,6.56,133.58,133.56,100.0]
[1719099896230,14.0456,133.59,133.56,100.0]
[1719099897218,6.56,133.59,133.56,100.0]
[1719099897938,6.56,133.58,133.56,100.0]
[1719099899634,7.4851,133.6,133.58,100.0]
[1719099899938,26.56,133.59,133.58,100.0]
[1719099900138,7.4839,133.62,133.6,100.0]
[1719099900551,6.56,133.61,133.6,100.0]
[1719099902024,6.56,133.61,133.58,100.0]
[1719099902227,18.7071,133.64,133.58,100.0]
[1719099902538,46.24,133.63,133.58,100.0]
[1719099902712,6.56,133.6,133.58,100.0]
[1719099903151,6.56,133.59,133.58,100.0]
[1719099903315,7.4839,133.62,133.58,100.0]
[1719099903650,6.56,133.59,133.58,100.0]
[1719099905520,6.56,133.59,133.54,100.0]
[1719099905837,6.56,133.56,133.54,107.4881]
[1719099906234,6.56,133.55,133.54,107.4883]
[1719099906829,6.56,133.56,133.54,107.4883]
[1719099908827,6.56,133.58,133.56,107.4869]
[1719099909845,7.4846,133.61,133.56,107.4869]
[1719099910139,20.0,133.6,133.58,100.0]
[1719099910326,6.56,133.59,133.58,100.0]
[1719099910524,26.56,133.59,133.58,100.0]
[1719099911027,26.56,133.59,133.56,100.0]
[1719099911328,20.0,133.58,133.56,100.0]
[1719099911839,26.56,133.58,133.56,100.0]
[1719099912038,18.7094,133.63,133.6,100.0]
[1719099912216,6.56,133.62,133.6,100.0]
[1719099913322,7.81645846,133.65,133.62,100.0]
[1719099913633,26.56,133.64,133.62,100.0]
[1719099914430,6.56,133.63,133.62,100.0]
[1719099915549,20.0,133.64,133.62,100.0]
[1719099915745,6.56,133.64,133.62,100.0]
[1719099916039,6.56,133.64,133.63,1.49936316]
[1719099916239,7.4818,133.66,133.64,100.0]
[1719099916240,6.56,133.66,133.64,100.0]
[1719099917036,7.4809,133.68,133.64,100.0]
[1719099917341,7.4802,133.69,133.64,107.4827]
[1719099917651,6.56,133.67,133.66,100.0]
[1719099917959,6.56,133.68,133.66,100.0]
[1719099918253,6.56,133.69,133.66,100.0]
[1719099919454,7.4796,133.7,133.66,100.0]
[1719099919656,6.56,133.69,133.66,100.0]
[1719099920656,6.56,133.69,133.66,107.4816]
[1719099921543,7.4795,133.7,133.66,100.0]
[1719099921748,6.56,133.67,133.66,100.0]
[1719099922443,7.4802,133.69,133.66,100.0]
[1719099922646,26.24,133.7,133.64,107.4826]
[1719099922825,20.0,133.69,133.64,107.4826]
[1719099923027,6.56,133.65,133.62,113.8447]
[1719099923827,6.56,133.64,133.62,113.8447]
[1719099924024,6.56,133.64,133.62,106.3611]
[1719099924242,6.56,133.65,133.63,7.4833]
[1719099925963,6.56,133.65,133.62,107.4837]
[1719099926249,6.56,133.63,133.62,107.4837]
[1719099927316,20.0,133.69,133.64,7.4826]
[1719099927538,6.56,133.65,133.64,7.4826]
[1719099929153,6.56,133.65,133.63,7.4831]
[1719099929357,6.56,133.64,133.63,7.4831]
[1719099934641,6.56,133.64,133.62,107.4837]
[1719099935031,6.56,133.63,133.62,107.4837]
[1719099935346,7.4812,133.67,133.62,107.4837]
[1719099935347,7.4807,133.68,133.63,7.4833]
[1719099935560,6.56,133.64,133.63,7.4833]
[1719099937036,6.56,133.64,133.62,107.4836]
[1719099938332,7.4811,133.67,133.62,107.4836]
[1719099938637,6.56,133.65,133.63,7.4833]
[1719099939162,6.56,133.66,133.63,7.4833]
[1719099940340,6.56,133.65,133.63,7.4833]
[1719099940948,6.56,133.65,133.62,107.4836]
[1719099941756,6.56,133.67,133.64,107.4827]
[1719099942056,20.0,133.66,133.64,107.4827]
[1719099942733,26.56,133.66,133.64,100.0]
[1719099944362,20.0,133.66,133.64,100.0]
[1719099944539,6.56,133.66,133.64,100.0]
[1719099944738,26.56,133.67,133.66,100.0]
[1719099948846,7.4804,133.69,133.66,100.0]
[1719099949051,6.56,133.68,133.66,100.0]
[1719099960587,6.56,133.68,133.64,107.4826]
[1719099960874,6.56,133.65,133.64,100.0]
[1719099962483,6.56,133.66,133.64,100.0]
[1719099962854,6.56,133.66,133.64,107.4827]
[1719099963058,6.56,133.66,133.65,7.4822]
[1719099963254,6.56,133.66,133.64,100.0]
[1719099963555,6.56,133.65,133.64,100.0]
[1719099965574,7.4807,133.68,133.64,100.0]
[1719099965765,6.56,133.65,133.64,100.0]
[1719099965964,7.4807,133.68,133.64,100.0]
[1719099966179,20.0,133.67,133.64,100.0]
[1719099966381,6.56,133.65,133.64,100.0]
[1719099967554,20.0,133.67,133.64,100.0]
[1719099967756,6.56,133.66,133.64,100.0]
[1719099967951,6.56,133.66,133.64,107.4826]
[1719099968361,6.56,133.66,133.64,100.0]
[1719099972886,6.56,133.66,133.64,107.4827]
[1719099973674,6.56,133.66,133.64,100.0]
[1719099974601,6.56,133.66,133.64,107.4827]
[1719099975297,12.45886828,133.68,133.67,100.0]
[1719099975503,19.02418699,133.71,133.67,107.4809]
[1719099975816,6.56,133.71,133.68,1.49368506]
[1719099976178,6.56,133.7,133.68,1.49368506]
[1719099981715,6.56,133.7,133.67,100.0]
[1719099981887,6.56,133.69,133.67,100.0]
[1719099982488,6.56,133.68,133.64,122.4475]
[1719099982700,6.56,133.66,133.64,116.0726]
[1719099982899,6.56,133.66,133.64,123.5553]
[1719099983787,6.56,133.66,133.64,116.0726]
[1719099984408,6.56,133.66,133.64,123.5552]
[1719099984921,6.56,133.68,133.65,107.4817]